fUST/lending_fUST_20250812
["ID","MTS","AMOUNT","RATE_DAILY","PERIOD"]
[378655061,1754944265272,-500.0,0.00020268,2]
[378655062,1754944265469,-1500.0,0.00020268,2]
[378655063,1754944265479,-1500.0,0.00020268,2]
[378655064,1754944265489,-1500.0,0.00020268,2]
[378655065,1754944265498,-1500.0,0.00020268,2]
[378655066,1754944265507,-1500.0,0.00020268,2]
[378655067,1754944265516,-286420.9300795,0.0002027,5]
[378655068,1754944267373,-11467.04825091,0.0002027,5]
[378655069,1754944268104,-1511.26,0.00019178,2]
[378655070,1754944268113,-533.01,0.00019178,2]
[378655071,1754944268123,-151.0,0.00019236,2]
[378655072,1754944268132,-264.19742311,0.0001934,2]
[378655073,1754944268141,-460.0,0.00019452,2]
[378655074,1754944268150,-1511.26,0.00019452,2]
[378655075,1754944268159,-533.01,0.00019452,2]
[378655076,1754944268168,-151.0,0.00019452,2]
[378655077,1754944268178,-151.0,0.00019452,2]
[378655078,1754944268187,-151.0,0.00019452,2]
[378655079,1754944268197,-500.0,0.00019473,2]
[378655080,1754944268206,-2614.40657446,0.00019489,2]
[378655081,1754944268216,-151.0,0.00019726,2]
[378655082,1754944268225,-460.0,0.00019726,2]
[378655083,1754944268235,-1511.26,0.00019726,2]
[378655084,1754944268244,-533.01,0.00019726,2]
[378655085,1754944268253,-216.154836,0.00019726,2]
[378655086,1754944268263,-151.0,0.000199,2]
[378655087,1754944268272,-151.0,0.0002,2]
[378655088,1754944268281,-460.0,0.0002,2]
[378655089,1754944268291,-151.0,0.0002,2]
[378655090,1754944268300,-1511.26,0.0002,2]
[378655091,1754944268310,-533.01,0.0002,2]
[378655092,1754944268319,-1000.0,0.00020021,2]
[378655093,1754944268328,-151.0,0.00020172,2]
[378655094,1754944268339,-36096.02082006,0.0002027,5]
[378655095,1754944268348,-151.0,0.0002027,2]
[378655096,1754944268357,-151.0,0.0002027,2]
[378655097,1754944268366,-151.0,0.0002027,2]
[378655098,1754944268375,-151.0,0.0002027,2]
[378655099,1754944268384,-151.0,0.0002027,2]
[378655100,1754944268393,-151.0,0.0002027,2]
[378655101,1754944268402,-151.0,0.0002027,2]
[378655102,1754944268411,-151.0,0.0002027,2]
[378655103,1754944268421,-151.0,0.0002027,2]
[378655104,1754944268431,-272.826563,0.0002027,2]
[378655105,1754944268440,-272.826563,0.0002027,2]
[378655106,1754944268450,-151.0,0.0002027,2]
[378655107,1754944268460,-359.506119,0.0002027,2]
[378655108,1754944268469,-362.445526,0.0002027,2]
[378655109,1754944268478,-362.445526,0.0002027,2]
[378655110,1754944268487,-151.0,0.0002027,2]
[378655111,1754944268497,-258.785448,0.0002027,2]
[378655112,1754944268506,-151.0,0.0002027,2]
[378655113,1754944268515,-1364.229113,0.0002027,2]
[378655114,1754944268524,-1364.229107,0.0002027,2]
[378655115,1754944268534,-159.451413,0.0002027,2]
[378655116,1754944268543,-371.458796,0.0002027,2]
[378655117,1754944268552,-371.458792,0.0002027,2]
[378655118,1754944268561,-159.451421,0.0002027,2]
[378655119,1754944268571,-151.0,0.00020273,2]
[378655120,1754944268580,-151.0,0.00020273,2]
[378655121,1754944268591,-151.0,0.00020273,2]
[378655122,1754944268599,-151.0,0.00020273,2]
[378655123,1754944268608,-151.0,0.00020273,2]
[378655124,1754944268617,-151.0,0.00020273,2]
[378655125,1754944268626,-151.0,0.00020273,2]
[378655126,1754944268635,-151.0,0.00020273,2]
[378655127,1754944268644,-466.29801671,0.00020273,2]
[378655128,1754944268654,-151.0,0.00020273,2]
[378655129,1754944268663,-460.0,0.00020273,2]
[378655130,1754944268672,-460.0,0.00020273,2]
[378655131,1754944268682,-460.0,0.00020273,2]
[378655132,1754944268691,-460.0,0.00020273,2]
[378655133,1754944268700,-460.0,0.00020273,2]
[378655134,1754944268709,-460.0,0.00020273,2]
[378655135,1754944268718,-460.0,0.00020273,2]
[378655136,1754944268727,-460.0,0.00020273,2]
[378655137,1754944268736,-460.0,0.00020273,2]
[378655138,1754944268746,-460.0,0.00020273,2]
[378655139,1754944268755,-460.0,0.00020273,2]
[378655140,1754944268764,-503.14,0.00020273,2]
[378655141,1754944268773,-460.0,0.00020273,2]
[378655142,1754944268782,-460.0,0.00020273,2]
[378655143,1754944268791,-467.18,0.00020273,2]
[378655144,1754944268800,-1028.23,0.00020273,2]
[378655145,1754944268809,-460.0,0.00020273,2]
[378655146,1754944268821,-410.60705203,0.00020273,2]
[378655147,1754944269013,-2614.40657446,0.000199,2]
[378655148,1754944269023,-49.39294797,0.00020273,2]
[378655149,1754944269033,-460.0,0.00020273,2]
[378655150,1754944269042,-941.44,0.00020273,2]
[378655151,1754944269051,-315.72091378,0.00020273,2]
[378655152,1754944269061,-79.29117417,0.00020273,2]
[378655154,1754944307755,309.509245,0.00017917,2]
[378655159,1754944521030,665.397191,0.00013699,2]
[378655161,1754944562523,10000.0,0.00018192,2]
[378655167,1754944754822,24900.0,0.00018177,2]
[378655173,1754945294128,242.49856,0.00018172,2]
[378655208,1754945431909,-451.72280759,0.000189,2]
[378655210,1754945431919,-156.90980111,0.00019061,2]
[378655212,1754945431930,-300.0,0.00019077,2]
[378655214,1754945431939,-1200.0,0.00019077,2]
[378655216,1754945431948,-661.36972352,0.00019078,2]
[378655339,1754945437607,-8068.16960751,0.00019078,2]
[378655340,1754945437617,-363.95864049,0.00019078,2]
[378655341,1754945437627,-151.0,0.00019166,2]
[378655342,1754945437637,-1000.0,0.00019166,2]
[378655343,1754945437647,-151.0,0.00019166,2]
[378655344,1754945437656,-2183.31810187,0.00019166,2]
[378655345,1754945437666,-151.0,0.00019166,2]
[378655346,1754945437676,-151.0,0.00019166,2]
[378655347,1754945437685,-151.0,0.00019166,2]
[378655348,1754945437695,-151.0,0.00019166,2]
[378655349,1754945437705,-1000.0,0.00019166,2]
[378655350,1754945437714,-151.0,0.00019166,2]
[378655352,1754945437725,-151.0,0.00019166,2]
[378655354,1754945437734,-151.0,0.00019166,2]
[378655355,1754945437744,-1000.0,0.00019166,2]
[378655356,1754945437754,-151.0,0.00019166,2]
[378655357,1754945437763,-151.0,0.00019166,2]
[378655358,1754945437774,-151.0,0.00019166,2]
[378655359,1754945437783,-151.0,0.00019166,2]
[378655360,1754945437792,-151.0,0.00019166,2]
[378655361,1754945437802,-151.0,0.00019166,2]
[378655362,1754945437812,-151.0,0.00019166,2]
[378655363,1754945437824,-151.0,0.00019166,2]
[378655364,1754945437833,-151.0,0.00019166,2]
[378655365,1754945437843,-151.0,0.00019166,2]
[378655366,1754945437852,-151.0,0.00019166,2]
[378655367,1754945437863,-151.0,0.00019166,2]
[378655368,1754945437873,-151.0,0.00019166,2]
[378655369,1754945437882,-151.0,0.00019166,2]
[378655370,1754945437892,-151.0,0.00019166,2]
[378655371,1754945437901,-151.0,0.00019166,2]
[378655372,1754945437911,-151.0,0.00019166,2]
[378655373,1754945437922,-151.0,0.00019166,2]
[378655374,1754945437931,-151.0,0.00019166,2]
[378655375,1754945437941,-151.0,0.00019166,2]
[378655376,1754945437950,-151.0,0.00019166,2]
[378655377,1754945437960,-435.98,0.00019168,3]
[378655378,1754945437969,-217.99,0.00019168,3]
[378655379,1754945437979,-653.97,0.00019168,3]
[378655380,1754945437989,-500.0,0.00019173,2]
[378655381,1754945437999,-500.0,0.00019173,2]
[378655382,1754945438009,-500.0,0.00019173,2]
[378655383,1754945438268,-500.0,0.00019173,2]
[378655384,1754945438278,-547.10620068,0.00019173,2]
[378655385,1754945438288,-584.08680848,0.00019173,2]
[378655386,1754945438297,-258.85036039,0.00019173,2]
[378655387,1754945438306,-500.0,0.00019173,2]
[378655388,1754945438317,-458.48954578,0.00019173,2]
[378655389,1754945438329,-41.51045422,0.00019173,2]
[378655390,1754945438338,-493.43861019,0.00019177,2]
[378655391,1754945438349,-9.21154278,0.00019177,2]
[378655392,1754945438358,-500.0,0.00019177,2]
[378655393,1754945438368,-433.76938641,0.00019177,2]
[378655394,1754945438379,-66.23061359,0.00019177,2]
[378655395,1754945438388,-500.0,0.00019177,2]
[378655396,1754945438397,-500.0,0.00019177,2]
[378655397,1754945438406,-318.53284256,0.00019177,2]
[378655398,1754945438417,-181.46715744,0.00019177,2]
[378655399,1754945438426,-475.94995835,0.00019177,2]
[378655400,1754945438436,-500.0,0.00019177,2]
[378655401,1754945438445,-91.63295071,0.00019177,2]
[378655402,1754945438457,-554.95990059,0.00019177,2]
[378655403,1754945438466,-258.66714866,0.00019177,2]
[378655404,1754945438486,-241.33285134,0.00019177,2]
[378655405,1754945438495,-500.0,0.00019177,2]
[378655406,1754945438505,-500.0,0.00019177,2]
[378655407,1754945438514,-500.0,0.00019177,2]
[378655408,1754945438523,-500.0,0.00019177,2]
[378655409,1754945438532,-415.25131378,0.00019177,2]
[378655410,1754945438542,-500.0,0.00019177,2]
[378655411,1754945438551,-500.0,0.00019177,2]
[378655412,1754945438561,-500.0,0.00019177,2]
[378655413,1754945438570,-500.0,0.00019177,2]
[378655414,1754945438579,-500.0,0.00019177,2]
[378655415,1754945438589,-176.78658629,0.00019177,2]
[378655416,1754945438600,-323.21341371,0.00019177,2]
[378655417,1754945438610,-500.0,0.00019177,2]
[378655418,1754945438619,-300.0,0.00019177,2]
[378655419,1754945438629,-460.0,0.00019178,2]
[378655420,1754945438639,-460.0,0.00019178,2]
[378655421,1754945438649,-417.39336558,0.00019178,2]
[378655422,1754945438659,-460.0,0.00019178,2]
[378655423,1754945438670,-460.0,0.00019178,2]
[378655424,1754945438680,-460.0,0.00019178,2]
[378655425,1754945438691,-460.0,0.00019178,2]
[378655426,1754945438702,-230.44688016,0.00019178,2]
[378655427,1754945438713,-460.0,0.00019178,2]
[378655428,1754945438723,-460.0,0.00019178,2]
[378655429,1754945438733,-460.0,0.00019178,2]
[378655430,1754945438743,-344.42021079,0.00019178,2]
[378655431,1754945438754,-179.33545457,0.00019178,2]
[378655450,1754945439758,-280.66454543,0.00019178,2]
[378655451,1754945439768,-547.55,0.00019178,2]
[378655452,1754945439777,-1330.2,0.00019178,2]
[378655453,1754945439786,-460.0,0.00019178,2]
[378655454,1754945439796,-460.0,0.00019178,2]
[378655455,1754945439806,-769.27,0.00019178,2]
[378655456,1754945439815,-460.0,0.00019178,2]
[378655457,1754945439824,-460.0,0.00019178,2]
[378655458,1754945439833,-460.0,0.00019178,2]
[378655459,1754945439843,-460.0,0.00019178,2]
[378655460,1754945439852,-460.0,0.00019178,2]
[378655461,1754945439861,-460.0,0.00019178,2]
[378655463,1754945439878,-753.59,0.00019178,2]
[378655466,1754945439888,-460.0,0.00019178,2]
[378655467,1754945439897,-460.0,0.00019178,2]
[378655468,1754945439906,-679.71,0.00019178,2]
[378655469,1754945439916,-460.0,0.00019178,2]
[378655470,1754945439925,-460.0,0.00019178,2]
[378655471,1754945439934,-460.0,0.00019178,2]
[378655472,1754945439943,-460.0,0.00019178,2]
[378655473,1754945439952,-460.0,0.00019178,2]
[378655474,1754945439961,-460.0,0.00019178,2]
[378655475,1754945439971,-221.63102291,0.00019178,2]
[378655476,1754945439980,-856.32,0.00019178,2]
[378655477,1754945439990,-460.0,0.00019178,2]
[378655478,1754945439999,-460.0,0.00019178,2]
[378655479,1754945440008,-513.37,0.00019178,2]
[378655480,1754945440018,-551.67,0.00019178,2]
[378655481,1754945440027,-675.33,0.00019178,2]
[378655482,1754945440036,-460.0,0.00019178,2]
[378655483,1754945440046,-500.15,0.00019178,2]
[378655484,1754945440055,-460.0,0.00019178,2]
[378655485,1754945440065,-460.0,0.00019178,2]
[378655486,1754945440074,-460.0,0.00019178,2]
[378655487,1754945440083,-460.0,0.00019178,2]
[378655488,1754945440092,-594.54,0.00019178,2]
[378655489,1754945440102,-460.0,0.00019178,2]
[378655490,1754945440111,-460.0,0.00019178,2]
[378655491,1754945440120,-391.83370123,0.00019178,2]
[378655492,1754945440130,-460.0,0.00019178,2]
[378655493,1754945440139,-460.0,0.00019178,2]
[378655494,1754945440149,-465.65030632,0.00019178,2]
[378655495,1754945440160,-772.93,0.00019178,2]
[378655496,1754945440170,-460.0,0.00019178,2]
[378655497,1754945440179,-460.0,0.00019178,2]
[378655498,1754945440189,-460.0,0.00019178,2]
[378655499,1754945440198,-460.0,0.00019178,2]
[378655500,1754945440207,-460.0,0.00019178,2]
[378655501,1754945440216,-4603.73,0.00019178,2]
[378655502,1754945440227,-460.0,0.00019178,2]
[378655503,1754945440236,-460.0,0.00019178,2]
[378655504,1754945440245,-460.0,0.00019178,2]
[378655505,1754945440254,-3358.5,0.00019178,2]
[378655506,1754945440263,-460.0,0.00019178,2]
[378655507,1754945440273,-474.39,0.00019178,2]
[378655508,1754945440282,-460.0,0.00019178,2]
[378655509,1754945440291,-619.48,0.00019178,2]
[378655510,1754945440300,-460.0,0.00019178,2]
[378655511,1754945440310,-1123.35,0.00019178,2]
[378655512,1754945440320,-460.0,0.00019178,2]
[378655513,1754945440329,-460.0,0.00019178,2]
[378655514,1754945440341,-460.0,0.00019178,2]
[378655515,1754945440351,-460.0,0.00019178,2]
[378655516,1754945440361,-460.0,0.00019178,2]
[378655517,1754945440370,-460.0,0.00019178,2]
[378655518,1754945440380,-553.92,0.00019178,2]
[378655519,1754945440389,-460.0,0.00019178,2]
[378655520,1754945440398,-460.0,0.00019178,2]
[378655521,1754945440408,-504.94549371,0.00019178,2]
[378655522,1754945440417,-2454.43,0.00019178,2]
[378655523,1754945440426,-532.63,0.00019178,2]
[378655524,1754945440436,-917.86,0.00019178,2]
[378655525,1754945440445,-460.0,0.00019178,2]
[378655526,1754945440454,-625.58,0.00019178,2]
[378655527,1754945440463,-460.0,0.00019178,2]
[378655528,1754945440472,-460.0,0.00019178,2]
[378655529,1754945440482,-670.78,0.00019178,2]
[378655530,1754945440491,-460.0,0.00019178,2]
[378655531,1754945440502,-460.0,0.00019178,2]
[378655532,1754945440511,-1595.07,0.00019178,2]
[378655533,1754945440521,-460.0,0.00019178,2]
[378655534,1754945440530,-460.0,0.00019178,2]
[378655535,1754945440539,-1407.26,0.00019178,2]
[378655536,1754945440549,-460.0,0.00019178,2]
[378655537,1754945440558,-460.0,0.00019178,2]
[378655538,1754945440567,-460.0,0.00019178,2]
[378655539,1754945440576,-460.0,0.00019178,2]
[378655540,1754945440586,-118.67138842,0.00019178,2]
[378655541,1754945440604,-341.32861158,0.00019178,2]
[378655542,1754945440613,-460.0,0.00019178,2]
[378655543,1754945440623,-609.86,0.00019178,2]
[378655544,1754945440632,-460.0,0.00019178,2]
[378655545,1754945440641,-460.0,0.00019178,2]
[378655546,1754945440650,-966.66,0.00019178,2]
[378655547,1754945440659,-460.0,0.00019178,2]
[378655548,1754945440668,-460.0,0.00019178,2]
[378655549,1754945440677,-460.0,0.00019178,2]
[378655550,1754945440687,-530.83,0.00019178,2]
[378655551,1754945440698,-470.36420192,0.00019178,2]
[378655552,1754945440708,-460.0,0.00019178,2]
[378655553,1754945440717,-235.43300762,0.00019178,2]
[378655563,1754945442830,-224.56699238,0.00019178,2]
[378655565,1754945442840,-460.0,0.00019178,2]
[378655566,1754945442850,-460.0,0.00019178,2]
[378655568,1754945442859,-466.5,0.00019178,2]
[378655569,1754945442868,-460.0,0.00019178,2]
[378655571,1754945442877,-463.9,0.00019178,2]
[378655573,1754945442886,-479.50710539,0.00019178,2]
[378655575,1754945442895,-468.7,0.00019178,2]
[378655576,1754945442904,-547.26,0.00019178,2]
[378655578,1754945442913,-536.01,0.00019178,2]
[378655579,1754945442922,-460.0,0.00019178,2]
[378655581,1754945442931,-647.57,0.00019178,2]
[378655583,1754945442941,-460.0,0.00019178,2]
[378655585,1754945442950,-460.0,0.00019178,2]
[378655587,1754945442960,-467.04971687,0.00019178,2]
[378655589,1754945442972,-460.0,0.00019178,2]
[378655591,1754945442983,-460.0,0.00019178,2]
[378655593,1754945442993,-460.0,0.00019178,2]
[378655595,1754945443002,-1769.16,0.00019178,2]
[378655597,1754945443012,-460.0,0.00019178,2]
[378655599,1754945443021,-681.77,0.00019178,2]
[378655601,1754945443031,-460.0,0.00019178,2]
[378655603,1754945443040,-460.0,0.00019178,2]
[378655605,1754945443050,-465.77240923,0.00019178,2]
[378655607,1754945443059,-460.0,0.00019178,2]
[378655609,1754945443068,-460.0,0.00019178,2]
[378655611,1754945443077,-888.35,0.00019178,2]
[378655613,1754945443086,-460.0,0.00019178,2]
[378655615,1754945443096,-2167.58,0.00019178,2]
[378655617,1754945443105,-460.0,0.00019178,2]
[378655619,1754945443114,-460.0,0.00019178,2]
[378655621,1754945443124,-977.15,0.00019178,2]
[378655623,1754945443133,-944.5,0.00019178,2]
[378655625,1754945443143,-460.0,0.00019178,2]
[378655627,1754945443155,-460.0,0.00019178,2]
[378655629,1754945443165,-481.76158442,0.00019178,2]
[378655631,1754945443174,-460.0,0.00019178,2]
[378655633,1754945443183,-553.25,0.00019178,2]
[378655635,1754945443194,-757.42,0.00019178,2]
[378655637,1754945443203,-460.0,0.00019178,2]
[378655639,1754945443212,-574.21,0.00019178,2]
[378655641,1754945443221,-460.0,0.00019178,2]
[378655643,1754945443231,-460.0,0.00019178,2]
[378655645,1754945443241,-460.0,0.00019178,2]
[378655647,1754945443251,-837.36,0.00019178,2]
[378655649,1754945443260,-1047.5,0.00019178,2]
[378655651,1754945443269,-460.0,0.00019178,2]
[378655653,1754945443279,-460.0,0.00019178,2]
[378655655,1754945443288,-460.0,0.00019178,2]
[378655657,1754945443297,-460.0,0.00019178,2]
[378655659,1754945443306,-460.0,0.00019178,2]
[378655661,1754945443316,-1818.61,0.00019178,2]
[378655663,1754945443328,-460.0,0.00019178,2]
[378655665,1754945443338,-461.54,0.00019178,2]
[378655667,1754945443348,-460.0,0.00019178,2]
[378655669,1754945443357,-460.0,0.00019178,2]
[378655671,1754945443366,-460.0,0.00019178,2]
[378655673,1754945443375,-460.0,0.00019178,2]
[378655675,1754945443385,-460.0,0.00019178,2]
[378655677,1754945443394,-1104.61,0.00019178,2]
[378655679,1754945443403,-256.53897555,0.00019178,2]
[378655681,1754945443412,-460.0,0.00019178,2]
[378655683,1754945443421,-460.0,0.00019178,2]
[378655685,1754945443430,-461.96103739,0.00019178,2]
[378655687,1754945443439,-1336.85,0.00019178,2]
[378655689,1754945443448,-460.0,0.00019178,2]
[378655691,1754945443457,-460.0,0.00019178,2]
[378655693,1754945443467,-460.0,0.00019178,2]
[378655695,1754945443476,-3284.18,0.00019178,2]
[378655697,1754945443485,-1186.11,0.00019178,2]
[378655699,1754945443495,-1266.67,0.00019178,2]
[378655701,1754945443505,-596.28105441,0.00019178,2]
[378655703,1754945443515,-486.09453192,0.00019178,2]
[378655705,1754945443524,-460.0,0.00019178,2]
[378655707,1754945443533,-460.0,0.00019178,2]
[378655709,1754945443543,-460.0,0.00019178,2]
[378655711,1754945443552,-675.57,0.00019178,2]
[378655713,1754945443561,-460.0,0.00019178,2]
[378655715,1754945443570,-460.0,0.00019178,2]
[378655717,1754945443579,-460.0,0.00019178,2]
[378655719,1754945443589,-596.19,0.00019178,2]
[378655721,1754945443598,-460.0,0.00019178,2]
[378655723,1754945443607,-460.0,0.00019178,2]
[378655725,1754945443618,-460.0,0.00019178,2]
[378655727,1754945443627,-460.0,0.00019178,2]
[378655729,1754945443636,-460.0,0.00019178,2]
[378655731,1754945443645,-460.0,0.00019178,2]
[378655733,1754945443655,-460.0,0.00019178,2]
[378655735,1754945443663,-384.55894493,0.00019178,2]
[378655737,1754945443673,-267.72418821,0.00019178,2]
[378655739,1754945443687,-192.27581179,0.00019178,2]
[378655741,1754945443696,-270.6636376,0.00019178,2]
[378655743,1754945443704,-460.0,0.00019178,2]
[378655745,1754945443713,-460.0,0.00019178,2]
[378655747,1754945443722,-460.0,0.00019178,2]
[378655749,1754945443731,-460.0,0.00019178,2]
[378655751,1754945443740,-460.0,0.00019178,2]
[378655753,1754945443749,-460.0,0.00019178,2]
[378655755,1754945443757,-814.02,0.00019178,2]
[378655757,1754945443767,-407.37142774,0.00019178,2]
[378655759,1754945443775,-460.0,0.00019178,2]
[378655761,1754945443785,-705.17,0.00019178,2]
[378655763,1754945443794,-460.0,0.00019178,2]
[378655765,1754945443802,-460.0,0.00019178,2]
[378655767,1754945443811,-523.0826041,0.00019178,2]
[378655769,1754945443820,-460.0,0.00019178,2]
[378655771,1754945443829,-663.06,0.00019178,2]
[378655773,1754945443837,-460.0,0.00019178,2]
[378655775,1754945443847,-461.14937447,0.00019178,2]
[378655776,1754945443856,-460.0,0.00019178,2]
[378655779,1754945443866,-460.0,0.00019178,2]
[378655780,1754945443875,-2639.28,0.00019178,2]
[378655782,1754945443884,-460.0,0.00019178,2]
[378655784,1754945443893,-627.31,0.00019178,2]
[378655786,1754945443902,-801.34,0.00019178,2]
[378655788,1754945443911,-643.34,0.00019178,2]
[378655790,1754945443920,-539.83,0.00019178,2]
[378655792,1754945443929,-460.0,0.00019178,2]
[378655794,1754945443938,-460.0,0.00019178,2]
[378655796,1754945443947,-460.0,0.00019178,2]
[378655798,1754945443956,-460.0,0.00019178,2]
[378655800,1754945443965,-460.0,0.00019178,2]
[378655802,1754945443974,-2717.82,0.00019178,2]
[378655804,1754945443984,-460.0,0.00019178,2]
[378655806,1754945443993,-460.0,0.00019178,2]
[378655808,1754945444002,-764.48,0.00019178,2]
[378655810,1754945444011,-791.25,0.00019178,2]
[378655812,1754945444020,-1084.5541443,0.00019178,2]
[378655815,1754945444033,-770.3058557,0.00019178,2]
[378655817,1754945444042,-495.99,0.00019178,2]
[378655819,1754945444051,-3344.91514101,0.00019178,2]
[378655996,1754945445839,-843.87485899,0.00019178,2]
[378655998,1754945445849,-1200.89,0.00019178,2]
[378656000,1754945445858,-1782.77,0.00019178,2]
[378656001,1754945445867,-460.0,0.00019178,2]
[378656004,1754945445876,-460.0,0.00019178,2]
[378656005,1754945445885,-460.0,0.00019178,2]
[378656007,1754945445894,-1397.24,0.00019178,2]
[378656009,1754945445903,-460.0,0.00019178,2]
[378656011,1754945445912,-460.0,0.00019178,2]
[378656013,1754945445921,-460.0,0.00019178,2]
[378656015,1754945445931,-460.0,0.00019178,2]
[378656017,1754945445940,-1451.4,0.00019178,2]
[378656019,1754945445949,-460.0,0.00019178,2]
[378656021,1754945445958,-1669.42,0.00019178,2]
[378656023,1754945445967,-460.0,0.00019178,2]
[378656025,1754945445976,-1107.27,0.00019178,2]
[378656027,1754945445985,-460.0,0.00019178,2]
[378656029,1754945445995,-460.0,0.00019178,2]
[378656031,1754945446004,-460.0,0.00019178,2]
[378656033,1754945446013,-460.0,0.00019178,2]
[378656035,1754945446022,-460.0,0.00019178,2]
[378656037,1754945446031,-1482.75852995,0.00019178,2]
[378656130,1754945449183,-979.96147005,0.00019178,2]
[378656131,1754945449196,-460.0,0.00019178,2]
[378656132,1754945449207,-278.77899945,0.00019178,2]
[378656133,1754945449218,-506.37,0.00019178,2]
[378656134,1754945449229,-460.0,0.00019178,2]
[378656135,1754945449241,-460.0,0.00019178,2]
[378656136,1754945449251,-460.0,0.00019178,2]
[378656137,1754945449262,-1300.89,0.00019178,2]
[378656138,1754945449272,-460.0,0.00019178,2]
[378656139,1754945449283,-460.0,0.00019178,2]
[378656140,1754945449293,-5664.31,0.00019178,2]
[378656141,1754945449304,-1572.07,0.00019178,2]
[378656142,1754945449314,-460.0,0.00019178,2]
[378656143,1754945449326,-6198.04,0.00019178,2]
[378656144,1754945449336,-460.0,0.00019178,2]
[378656145,1754945449347,-460.0,0.00019178,2]
[378656146,1754945449358,-460.0,0.00019178,2]
[378656147,1754945449368,-460.0,0.00019178,2]
[378656148,1754945449378,-460.0,0.00019178,2]
[378656149,1754945449389,-460.0,0.00019178,2]
[378656150,1754945449399,-460.0,0.00019178,2]
[378656151,1754945449409,-460.0,0.00019178,2]
[378656152,1754945449420,-1343.16,0.00019178,2]
[378656153,1754945449430,-460.0,0.00019178,2]
[378656154,1754945449440,-3255.13,0.00019178,2]
[378656155,1754945449451,-460.0,0.00019178,2]
[378656156,1754945449461,-569.40625082,0.00019178,2]
[378656157,1754945449471,-762.57,0.00019178,2]
[378656158,1754945449482,-460.0,0.00019178,2]
[378656159,1754945449492,-4269.65,0.00019178,2]
[378656160,1754945449503,-460.0,0.00019178,2]
[378656161,1754945449513,-689.21,0.00019178,2]
[378656162,1754945449524,-460.0,0.00019178,2]
[378656163,1754945449534,-460.0,0.00019178,2]
[378656164,1754945449544,-460.0,0.00019178,2]
[378656165,1754945449554,-987.94,0.00019178,2]
[378656166,1754945449564,-460.0,0.00019178,2]
[378656167,1754945449574,-460.0,0.00019178,2]
[378656168,1754945449584,-460.0,0.00019178,2]
[378656169,1754945449594,-460.0,0.00019178,2]
[378656170,1754945449604,-460.0,0.00019178,2]
[378656171,1754945449614,-460.0,0.00019178,2]
[378656172,1754945449624,-1234.81,0.00019178,2]
[378656173,1754945449634,-460.0,0.00019178,2]
[378656174,1754945449644,-460.0,0.00019178,2]
[378656175,1754945449654,-1018.29,0.00019178,2]
[378656176,1754945449663,-460.0,0.00019178,2]
[378656177,1754945449673,-460.0,0.00019178,2]
[378656178,1754945449683,-460.0,0.00019178,2]
[378656179,1754945449692,-460.0,0.00019178,2]
[378656180,1754945449702,-460.0,0.00019178,2]
[378656181,1754945449715,-460.0,0.00019178,2]
[378656182,1754945449725,-3791.29,0.00019178,2]